lending/lending_fUSD_20250719
["ID","MTS","AMOUNT","RATE_DAILY","PERIOD"]
[373362289,1752969042018,-171.43490948,0.00019178,2]
[373362291,1752969042028,-365.240171,0.00019178,2]
[373362293,1752969042037,-365.240171,0.00019178,2]
[373362295,1752969042047,-480.0,0.00019178,2]
[373362298,1752969042065,-365.240171,0.00019178,2]
[373362301,1752969042078,-365.240171,0.00019178,2]
[373362303,1752969042089,-365.240171,0.00019178,2]
[373362305,1752969042099,-365.240171,0.00019178,2]
[373362307,1752969042109,-365.240171,0.00019178,2]
[373362309,1752969042121,-500.0,0.00019178,2]
[373362311,1752969042132,-450.56631664,0.00019178,2]
[373362314,1752969042142,-480.0,0.00019178,2]
[373362316,1752969042152,-151.0,0.00019178,2]
[373362318,1752969042163,-500.0,0.00019178,2]
[373362320,1752969042174,-151.0,0.00019178,2]
[373362322,1752969042185,-480.0,0.00019178,2]
[373362324,1752969042195,-365.240171,0.00019178,2]
[373362326,1752969042206,-151.0,0.00019178,2]
[373362328,1752969042216,-365.240171,0.00019178,2]
[373362331,1752969042226,-1583.23,0.00019178,2]
[373362333,1752969042236,-151.0,0.00019178,2]
[373362335,1752969042247,-365.240171,0.00019178,2]
[373362337,1752969042257,-151.0,0.00019178,2]
[373362339,1752969042268,-365.240171,0.00019178,2]
[373362341,1752969042278,-151.0,0.00019178,2]
[373362343,1752969042288,-365.240171,0.00019178,2]
[373362345,1752969042298,-151.0,0.00019178,2]
[373362347,1752969042308,-365.240171,0.00019178,2]
[373362350,1752969042319,-480.0,0.00019178,2]
[373362352,1752969042329,-480.0,0.00019178,2]
[373362354,1752969042340,-365.240171,0.00019178,2]
[373362356,1752969042351,-480.0,0.00019178,2]
[373362358,1752969042361,-480.0,0.00019178,2]
[373362360,1752969042371,-480.0,0.00019178,2]
[373362362,1752969042381,-480.0,0.00019178,2]
[373362364,1752969042391,-380.0,0.00019178,2]
[373362366,1752969042400,-480.0,0.00019178,2]
[373362368,1752969042410,-5000.0,0.00019178,2]
[373362370,1752969042420,-5000.0,0.00019178,2]
[373362372,1752969042430,-5000.0,0.00019178,2]
[373362374,1752969042440,-5000.0,0.00019178,2]
[373362376,1752969042450,-480.0,0.00019178,2]
[373362378,1752969042459,-4030.03084689,0.00019178,2]
[373362381,1752969042470,-500.0,0.00019178,2]
[373362383,1752969042480,-380.0,0.00019178,2]
[373362385,1752969042489,-480.0,0.00019178,2]
[373362387,1752969042499,-500.0,0.00019178,2]
[373362389,1752969042509,-480.0,0.00019178,2]
[373362391,1752969042519,-480.0,0.00019178,2]
[373362393,1752969042529,-775.67,0.00019178,2]
[373362395,1752969042539,-480.0,0.00019178,2]
[373362397,1752969042549,-946.16,0.00019178,2]
[373362399,1752969042559,-480.0,0.00019178,2]
[373362401,1752969042568,-481.74,0.00019178,2]
[373362403,1752969042579,-480.0,0.00019178,2]
[373362405,1752969042588,-500.0,0.00019178,2]
[373362407,1752969042598,-673.5,0.00019178,2]
[373362410,1752969042608,-480.0,0.00019178,2]
[373362412,1752969042617,-501.57413135,0.00019178,2]
[373362414,1752969042628,-869.48,0.00019178,2]
[373362416,1752969042638,-480.0,0.00019178,2]
[373362418,1752969042648,-480.0,0.00019178,2]
[373362420,1752969042658,-480.0,0.00019178,2]
[373362422,1752969042668,-480.0,0.00019178,2]
[373362424,1752969042678,-480.0,0.00019178,2]
[373362426,1752969042689,-380.0,0.00019178,2]
[373362428,1752969042700,-480.0,0.00019178,2]
[373362431,1752969042709,-480.0,0.00019178,2]
[373362433,1752969042719,-480.0,0.00019178,2]
[373362435,1752969042729,-480.0,0.00019178,2]
[373362437,1752969042742,-480.0,0.00019178,2]
[373362439,1752969042752,-480.0,0.00019178,2]
[373362441,1752969042762,-480.0,0.00019178,2]
[373362443,1752969042772,-480.0,0.00019178,2]
[373362445,1752969042782,-933.7,0.00019178,2]
[373362447,1752969042792,-480.0,0.00019178,2]
[373362449,1752969042802,-480.0,0.00019178,2]
[373362451,1752969042811,-380.0,0.00019178,2]
[373362454,1752969042823,-480.0,0.00019178,2]
[373362456,1752969042833,-859.559398,0.00019178,2]
[373362458,1752969042843,-600.66,0.00019178,2]
[373362460,1752969042855,-859.559398,0.00019178,2]
[373362462,1752969042865,-480.0,0.00019178,2]
[373362464,1752969042875,-859.559398,0.00019178,2]
[373362466,1752969042885,-859.559398,0.00019178,2]
[373362468,1752969042895,-480.0,0.00019178,2]
[373362470,1752969042905,-859.559398,0.00019178,2]
[373362472,1752969042915,-859.559398,0.00019178,2]
[373362474,1752969042925,-859.559398,0.00019178,2]
[373362476,1752969042935,-501.70282563,0.00019178,2]
[373362479,1752969042948,-480.0,0.00019178,2]
[373362481,1752969042958,-859.559398,0.00019178,2]
[373362483,1752969042967,-480.0,0.00019178,2]
[373362485,1752969042979,-859.559398,0.00019178,2]
[373362487,1752969042989,-804.46,0.00019178,2]
[373362489,1752969042998,-859.559398,0.00019178,2]
[373362491,1752969043009,-859.559398,0.00019178,2]
[373362493,1752969043021,-859.559398,0.00019178,2]
[373362495,1752969043031,-859.559398,0.00019178,2]
[373362497,1752969043041,-859.559398,0.00019178,2]
[373362500,1752969043052,-480.0,0.00019178,2]
[373362538,1752969043319,-480.0,0.00019178,2]
[373362541,1752969043329,-663.81,0.00019178,2]
[373362544,1752969043339,-572.05633036,0.00019178,2]
[373362547,1752969043348,-511.4588015,0.00019178,2]
[373362550,1752969043357,-480.0,0.00019178,2]
[373362553,1752969043366,-500.0,0.00019178,2]
[373362556,1752969043377,-480.0,0.00019178,2]
[373362559,1752969043386,-480.0,0.00019178,2]
[373362562,1752969043396,-480.0,0.00019178,2]
[373362565,1752969043405,-480.0,0.00019178,2]
[373362568,1752969043415,-480.0,0.00019178,2]
[373362571,1752969043424,-480.0,0.00019178,2]
[373362574,1752969043433,-521.92038748,0.00019178,2]
[373362577,1752969043443,-602.12,0.00019178,2]
[373362580,1752969043452,-770.09,0.00019178,2]
[373362583,1752969043461,-480.0,0.00019178,2]
[373362586,1752969043470,-613.07,0.00019178,2]
[373362589,1752969043479,-1303.77,0.00019178,2]
[373362592,1752969043488,-151.0,0.00019178,2]
[373362595,1752969043498,-151.0,0.00019178,2]
[373362599,1752969043507,-151.0,0.00019178,2]
[373362602,1752969043516,-480.0,0.00019178,2]
[373362605,1752969043526,-151.0,0.00019178,2]
[373362608,1752969043535,-480.0,0.00019178,2]
[373362610,1752969043544,-151.0,0.00019178,2]
[373362612,1752969043554,-500.0,0.00019178,2]
[373362614,1752969043563,-151.0,0.00019178,2]
[373362616,1752969043572,-151.0,0.00019178,2]
[373362618,1752969043582,-151.0,0.00019178,2]
[373362620,1752969043591,-151.0,0.00019178,2]
[373362622,1752969043600,-500.0,0.00019178,2]
[373362624,1752969043610,-508.03,0.00019178,2]
[373362626,1752969043619,-151.0,0.00019178,2]
[373362628,1752969043630,-151.0,0.00019178,2]
[373362630,1752969043639,-151.0,0.00019178,2]
[373362632,1752969043649,-151.0,0.00019178,2]
[373362634,1752969043658,-182.040885,0.00019178,2]
[373362636,1752969043668,-480.0,0.00019178,2]
[373362638,1752969043678,-480.0,0.00019178,2]
[373362640,1752969043687,-504.13542143,0.00019178,2]
[373362642,1752969043697,-528.19163917,0.00019178,2]
[373362644,1752969043706,-563.66,0.00019178,2]
[373362647,1752969043716,-480.0,0.00019178,2]
[373362649,1752969043726,-959.83,0.00019178,2]
[373362651,1752969043736,-1481.71,0.00019178,2]
[373362653,1752969043746,-480.0,0.00019178,2]
[373362655,1752969043755,-480.0,0.00019178,2]
[373362657,1752969043764,-151.0,0.00019178,2]
[373362659,1752969043774,-693.06,0.00019178,2]
[373362661,1752969043784,-151.0,0.00019178,2]
[373362663,1752969043795,-151.0,0.00019178,2]
[373362665,1752969043804,-151.0,0.00019178,2]
[373362667,1752969043815,-151.0,0.00019178,2]
[373362669,1752969043824,-480.0,0.00019178,2]
[373362671,1752969043834,-151.0,0.00019178,2]
[373362673,1752969043843,-480.0,0.00019178,2]
[373362675,1752969043853,-151.0,0.00019178,2]
[373362677,1752969043862,-500.0,0.00019178,2]
[373362679,1752969043872,-540.35,0.00019178,2]
[373362681,1752969043881,-500.0,0.00019178,2]
[373362683,1752969043891,-151.0,0.00019178,2]
[373362685,1752969043901,-480.0,0.00019178,2]
[373362687,1752969043911,-480.0,0.00019178,2]
[373362689,1752969043921,-500.0,0.00019178,2]
[373362691,1752969043930,-480.0,0.00019178,2]
[373362693,1752969043943,-460.0,0.00019178,2]
[373362695,1752969043951,-440.0,0.00019178,2]
[373362697,1752969043961,-500.0,0.00019178,2]
[373362698,1752969043970,-480.0,0.00019178,2]
[373362699,1752969043981,-480.0,0.00019178,2]
[373362700,1752969043991,-220.472175,0.00019178,2]
[373362701,1752969044000,-480.0,0.00019178,2]
[373362702,1752969044010,-480.0,0.00019178,2]
[373362703,1752969044019,-500.0,0.00019178,2]
[373362704,1752969044029,-480.0,0.00019178,2]
[373362705,1752969044039,-480.0,0.00019178,2]
[373362706,1752969044048,-480.0,0.00019178,2]
[373362707,1752969044058,-3810.27,0.00019178,2]
[373362708,1752969044067,-480.0,0.00019178,2]
[373362710,1752969044076,-480.0,0.00019178,2]
[373362712,1752969044086,-480.0,0.00019178,2]
[373362714,1752969044095,-500.0,0.00019178,2]
[373362716,1752969044105,-480.0,0.00019178,2]
[373362718,1752969044114,-480.0,0.00019178,2]
[373362720,1752969044124,-480.0,0.00019178,2]
[373362722,1752969044134,-440.0,0.00019178,2]
[373362724,1752969044144,-31606.63,0.00019178,2]
[373362726,1752969044154,-480.0,0.00019178,2]
[373362728,1752969044163,-500.0,0.00019178,2]
[373362730,1752969044173,-480.0,0.00019178,2]
[373362732,1752969044182,-480.0,0.00019178,2]
[373362734,1752969044193,-522.45,0.00019178,2]
[373362736,1752969044202,-480.0,0.00019178,2]
[373362738,1752969044211,-500.0,0.00019178,2]
[373362740,1752969044221,-589.16,0.00019178,2]
[373362742,1752969044230,-500.0,0.00019178,2]
[373362744,1752969044239,-480.0,0.00019178,2]
[373362746,1752969044248,-3819.61,0.00019178,2]
[373362748,1752969044257,-480.0,0.00019178,2]
[373362750,1752969044267,-665.15,0.00019178,2]
[373362752,1752969044277,-511.88,0.00019178,2]
[373362754,1752969044286,-480.0,0.00019178,2]
[373362756,1752969044296,-440.0,0.00019178,2]
[373362758,1752969044306,-480.0,0.00019178,2]
[373362760,1752969044315,-480.0,0.00019178,2]
[373362762,1752969044324,-1381.94,0.00019178,2]
[373362764,1752969044334,-480.0,0.00019178,2]
[373362766,1752969044343,-480.0,0.00019178,2]
[373362768,1752969044353,-480.0,0.00019178,2]
[373362770,1752969044362,-693.28,0.00019178,2]
[373362772,1752969044371,-480.0,0.00019178,2]
[373362774,1752969044380,-740.08,0.00019178,2]
[373362776,1752969044390,-266.402823,0.00019178,2]
[373362778,1752969044399,-480.0,0.00019178,2]
[373362780,1752969044409,-266.402823,0.00019178,2]
[373362782,1752969044419,-266.402823,0.00019178,2]
[373362784,1752969044428,-266.402823,0.00019178,2]
[373362786,1752969044438,-480.0,0.00019178,2]
[373362788,1752969044447,-266.402823,0.00019178,2]
[373362790,1752969044457,-480.0,0.00019178,2]
[373362792,1752969044467,-266.402823,0.00019178,2]
[373362794,1752969044476,-266.402823,0.00019178,2]
[373362796,1752969044485,-266.402823,0.00019178,2]
[373362798,1752969044495,-266.402823,0.00019178,2]
[373362801,1752969044506,-266.402823,0.00019178,2]
[373362803,1752969044516,-480.0,0.00019178,2]
[373362805,1752969044525,-266.402823,0.00019178,2]
[373362807,1752969044534,-500.0,0.00019178,2]
[373362809,1752969044544,-3992.9,0.00019178,2]
[373362811,1752969044553,-266.402823,0.00019178,2]
[373362813,1752969044562,-266.402823,0.00019178,2]
[373362815,1752969044572,-266.402823,0.00019178,2]
[373362817,1752969044581,-480.0,0.00019178,2]
[373362819,1752969044591,-480.0,0.00019178,2]
[373362821,1752969044600,-480.0,0.00019178,2]
[373362823,1752969044609,-808.27,0.00019178,2]
[373362825,1752969044619,-480.0,0.00019178,2]
[373362827,1752969044628,-480.0,0.00019178,2]
[373362829,1752969044638,-669.4,0.00019178,2]
[373362831,1752969044648,-500.0,0.00019178,2]
[373362833,1752969044658,-1661.89,0.00019178,2]
[373362835,1752969044667,-210.03,0.00019178,2]
[373362837,1752969044676,-500.0,0.00019178,2]
[373362839,1752969044687,-653.72,0.00019178,2]
[373362841,1752969044696,-600.13,0.00019178,2]
[373362843,1752969044706,-480.0,0.00019178,2]
[373362845,1752969044716,-480.0,0.00019178,2]
[373362847,1752969044726,-577.71,0.00019178,2]
[373362849,1752969044736,-320.273409,0.00019178,2]
[373362851,1752969044745,-320.273409,0.00019178,2]
[373362853,1752969044755,-480.0,0.00019178,2]
[373362855,1752969044766,-320.273409,0.00019178,2]
[373362857,1752969044775,-320.273409,0.00019178,2]
[373362859,1752969044785,-320.273409,0.00019178,2]
[373362861,1752969044794,-320.273409,0.00019178,2]
[373362863,1752969044803,-500.0,0.00019178,2]
[373362865,1752969044813,-480.0,0.00019178,2]
[373362867,1752969044822,-320.273409,0.00019178,2]
[373362869,1752969044832,-480.0,0.00019178,2]
[373362871,1752969044842,-500.0,0.00019178,2]
[373362873,1752969044851,-320.273409,0.00019178,2]
[373362875,1752969044861,-201.14264581,0.00019178,2]
[373362877,1752969044871,-320.273409,0.00019178,2]
[373362879,1752969044880,-320.273409,0.00019178,2]
[373362881,1752969044890,-3427.31,0.00019178,2]
[373362883,1752969044899,-480.0,0.00019178,2]
[373362885,1752969044909,-320.273409,0.00019178,2]
[373362887,1752969044919,-1688.55,0.00019178,2]
[373362889,1752969044928,-320.273409,0.00019178,2]
[373362891,1752969044939,-320.273409,0.00019178,2]
[373362893,1752969044950,-480.0,0.00019178,2]
[373362895,1752969044959,-513.47949598,0.00019178,2]
[373362897,1752969044969,-320.273417,0.00019178,2]
[373362899,1752969044979,-440.0,0.00019178,2]
[373362901,1752969044991,-480.0,0.00019178,2]
[373362903,1752969045001,-500.0,0.00019178,2]
[373362905,1752969045010,-480.0,0.00019178,2]
[373362907,1752969045022,-480.0,0.00019178,2]
[373362909,1752969045032,-480.0,0.00019178,2]
[373362911,1752969045041,-2936.63,0.00019178,2]
[373362913,1752969045050,-3278.32,0.00019178,2]
[373362915,1752969045062,-480.0,0.00019178,2]
[373362917,1752969045071,-480.0,0.00019178,2]
[373362919,1752969045081,-1373.32,0.00019178,2]
[373362921,1752969045091,-500.0,0.00019178,2]
[373362923,1752969045100,-151.0,0.00019178,2]
[373362925,1752969045109,-151.0,0.00019178,2]
[373362927,1752969045119,-151.0,0.00019178,2]
[373362929,1752969045129,-167.508404,0.00019178,2]
[373362931,1752969045139,-480.0,0.00019178,2]
[373362933,1752969045148,-693.68,0.00019178,2]
[373362935,1752969045157,-500.0,0.00019178,2]
[373362937,1752969045167,-1002.9,0.00019178,2]
[373362939,1752969045176,-480.0,0.00019178,2]
[373362941,1752969045186,-758.33,0.00019178,2]
[373362943,1752969045195,-480.0,0.00019178,2]
[373362945,1752969045204,-2861.18,0.00019178,2]
[373362947,1752969045213,-2214.67,0.00019178,2]
[373362949,1752969045222,-507.14939377,0.00019178,2]
[373362951,1752969045232,-493.16,0.00019178,2]
[373362953,1752969045241,-480.0,0.00019178,2]
[373362955,1752969045250,-260.0,0.00019178,2]
[373362957,1752969045259,-480.0,0.00019178,2]
[373362959,1752969045269,-500.0,0.00019178,2]
[373362961,1752969045278,-480.0,0.00019178,2]
[373362963,1752969045287,-1000.0,0.00019178,2]
[373362965,1752969045297,-2410.65,0.00019178,2]
[373362967,1752969045306,-480.0,0.00019178,2]
[373362969,1752969045315,-480.0,0.00019178,2]
[373362971,1752969045325,-500.0,0.00019178,2]
[373362973,1752969045334,-480.0,0.00019178,2]
[373362975,1752969045344,-380.0,0.00019178,2]
[373362977,1752969045353,-1529.67,0.00019178,2]
[373362979,1752969045362,-480.0,0.00019178,2]
[373362982,1752969045371,-480.0,0.00019178,2]
[373362984,1752969045381,-480.0,0.00019178,2]
[373362986,1752969045391,-757.31,0.00019178,2]
[373362988,1752969045400,-480.0,0.00019178,2]
[373362990,1752969045410,-150.0,0.00019178,2]
[373362992,1752969045419,-500.0,0.00019178,2]
[373362993,1752969045428,-480.0,0.00019178,2]
[373362995,1752969045437,-480.0,0.00019178,2]
[373362997,1752969045446,-480.0,0.00019178,2]
[373362999,1752969045455,-918.64,0.00019178,2]
[373363001,1752969045464,-1858.06,0.00019178,2]
[373363004,1752969045474,-500.0,0.00019178,2]
[373363006,1752969045483,-480.0,0.00019178,2]
[373363008,1752969045493,-789.78,0.00019178,2]
[373363010,1752969045503,-1198.99,0.00019178,2]
[373363012,1752969045512,-3176.18,0.00019178,2]
[373363014,1752969045521,-1404.13,0.00019178,2]
[373363016,1752969045531,-480.0,0.00019178,2]
[373363018,1752969045540,-1230.5,0.00019178,2]
[373363020,1752969045549,-480.0,0.00019178,2]
[373363022,1752969045559,-900.76,0.00019178,2]
[373363024,1752969045569,-510.00521863,0.00019178,2]
[373363026,1752969045579,-726.10787953,0.00019178,2]
[373363087,1752969046132,-2872.99212047,0.00019178,2]
[373363089,1752969046142,-521.44524299,0.00019178,2]
[373363091,1752969046151,-500.0,0.00019178,2]
[373363093,1752969046160,-1870.61,0.00019178,2]
[373363095,1752969046170,-1121.97,0.00019178,2]
[373363097,1752969046179,-480.0,0.00019178,2]
[373363099,1752969046188,-480.0,0.00019178,2]
[373363101,1752969046197,-480.0,0.00019178,2]
[373363104,1752969046207,-1257.9,0.00019178,2]
[373363106,1752969046216,-480.0,0.00019178,2]
[373363108,1752969046225,-500.0,0.00019178,2]
[373363110,1752969046234,-480.0,0.00019178,2]
[373363112,1752969046243,-460.0,0.00019178,2]
[373363115,1752969046252,-291.20452817,0.00019178,2]
[373363117,1752969046262,-480.0,0.00019178,2]
[373363119,1752969046271,-505.11967484,0.00019178,2]
[373363121,1752969046280,-798.59,0.00019178,2]
[373363123,1752969046289,-686.13,0.00019178,2]
[373363125,1752969046298,-480.0,0.00019178,2]
[373363127,1752969046307,-460.0,0.00019178,2]
[373363129,1752969046315,-480.0,0.00019178,2]
[373363131,1752969046324,-491.09081382,0.00019178,2]
[373363133,1752969046333,-1033.68,0.00019178,2]
[373363135,1752969046342,-270.68541249,0.00019178,2]
[373363137,1752969046351,-480.0,0.00019178,2]
[373363139,1752969046359,-500.0,0.00019178,2]
[373363141,1752969046368,-2396.83,0.00019178,2]
[373363142,1752969046377,-906.66,0.00019178,2]
[373363144,1752969046386,-1805.61,0.00019178,2]
[373363146,1752969046395,-480.0,0.00019178,2]
[373363148,1752969046404,-674.24,0.00019178,2]
[373363151,1752969046413,-1136.62,0.00019178,2]
[373363153,1752969046422,-480.0,0.00019178,2]
[373363155,1752969046431,-151.0,0.00019178,2]
[373363157,1752969046440,-372.594747,0.00019178,2]
[373363159,1752969046449,-1106.58,0.00019178,2]
[373363161,1752969046458,-372.594747,0.00019178,2]
[373363163,1752969046467,-847.36,0.00019178,2]
[373363165,1752969046476,-372.594747,0.00019178,2]
[373363167,1752969046485,-480.0,0.00019178,2]
[373363169,1752969046494,-372.594747,0.00019178,2]
[373363171,1752969046503,-480.0,0.00019178,2]
[373363173,1752969046512,-372.594747,0.00019178,2]
[373363175,1752969046521,-1030.85,0.00019178,2]
[373363177,1752969046530,-372.594747,0.00019178,2]
[373363179,1752969046539,-480.0,0.00019178,2]
[373363181,1752969046548,-372.594747,0.00019178,2]
[373363183,1752969046557,-563.35,0.00019178,2]
[373363185,1752969046566,-1330.734288,0.00019178,2]
[373363187,1752969046575,-1330.734288,0.00019178,2]
[373363189,1752969046583,-585.34,0.00019178,2]
[373363191,1752969046592,-1330.734288,0.00019178,2]
[373363193,1752969046602,-372.594747,0.00019178,2]
[373363195,1752969046611,-1330.734288,0.00019178,2]
[373363197,1752969046621,-4439.75,0.00019178,2]
[373363199,1752969046631,-1696.34,0.00019178,2]
[373363201,1752969046640,-372.594747,0.00019178,2]
[373363203,1752969046649,-1330.734288,0.00019178,2]
[373363205,1752969046659,-1330.734288,0.00019178,2]
[373363207,1752969046667,-372.594747,0.00019178,2]
[373363209,1752969046677,-1330.734288,0.00019178,2]
[373363211,1752969046686,-372.594747,0.00019178,2]
[373363213,1752969046695,-372.594747,0.00019178,2]
[373363215,1752969046704,-372.594747,0.00019178,2]
[373363217,1752969046714,-1856.23,0.00019178,2]
[373363219,1752969046723,-372.594751,0.00019178,2]
[373363221,1752969046732,-1330.734288,0.00019178,2]
[373363223,1752969046741,-1330.734288,0.00019178,2]
[373363225,1752969046751,-1330.734288,0.00019178,2]
[373363227,1752969046760,-1330.734288,0.00019178,2]
[373363229,1752969046769,-500.56,0.00019178,2]
[373363231,1752969046778,-1330.734288,0.00019178,2]
[373363233,1752969046787,-1330.734288,0.00019178,2]
[373363235,1752969046797,-1330.734288,0.00019178,2]
[373363237,1752969046806,-3913.18,0.00019178,2]
[373363239,1752969046815,-480.0,0.00019178,2]
[373363241,1752969046824,-2584.47,0.00019178,2]
[373363243,1752969046833,-480.0,0.00019178,2]
[373363244,1752969046842,-480.0,0.00019178,2]
[373363245,1752969046852,-530.62,0.00019178,2]
[373363246,1752969046861,-480.0,0.00019178,2]
[373363247,1752969046870,-480.0,0.00019178,2]
[373363248,1752969046882,-1002.3,0.00019178,2]
[373363249,1752969046891,-480.0,0.00019178,2]
[373363250,1752969046900,-166.954459,0.00019178,2]
[373363251,1752969046909,-480.0,0.00019178,2]
[373363252,1752969046919,-166.954459,0.00019178,2]
[373363253,1752969046928,-166.954459,0.00019178,2]
[373363254,1752969046938,-166.954459,0.00019178,2]
[373363256,1752969046949,-166.954459,0.00019178,2]
[373363258,1752969046958,-166.954459,0.00019178,2]
[373363260,1752969046967,-166.954459,0.00019178,2]
[373363262,1752969046977,-1370.48,0.00019178,2]
[373363264,1752969046986,-480.0,0.00019178,2]
[373363266,1752969046995,-1338.78,0.00019178,2]
[373363268,1752969047004,-166.954459,0.00019178,2]
[373363270,1752969047014,-480.0,0.00019178,2]
[373363272,1752969047024,-500.0,0.00019178,2]
[373363274,1752969047033,-166.954459,0.00019178,2]
[373363276,1752969047042,-166.954459,0.00019178,2]
[373363278,1752969047051,-947.08,0.00019178,2]
[373363280,1752969047061,-480.0,0.00019178,2]
[373363282,1752969047070,-1249.62,0.00019178,2]
[373363284,1752969047080,-166.954459,0.00019178,2]
[373363286,1752969047090,-480.0,0.00019178,2]
[373363288,1752969047099,-166.954459,0.00019178,2]
[373363290,1752969047109,-166.954459,0.00019178,2]
[373363292,1752969047119,-166.954455,0.00019178,2]
[373363294,1752969047128,-480.0,0.00019178,2]
[373363296,1752969047137,-480.0,0.00019178,2]
[373363298,1752969047146,-480.0,0.00019178,2]
[373363300,1752969047156,-711.6,0.00019178,2]
[373363302,1752969047166,-480.0,0.00019178,2]
[373363304,1752969047175,-500.0,0.00019178,2]
[373363306,1752969047184,-440.70698612,0.00019178,2]
[373363308,1752969047193,-736.37,0.00019178,2]
[373363310,1752969047202,-823.71,0.00019178,2]
[373363312,1752969047211,-661.84,0.00019178,2]
[373363314,1752969047221,-500.0,0.00019178,2]
[373363317,1752969047230,-480.0,0.00019178,2]
[373363318,1752969047239,-480.0,0.00019178,2]
[373363320,1752969047248,-500.0,0.00019178,2]
[373363323,1752969047259,-847.62,0.00019178,2]
[373363324,1752969047267,-480.0,0.00019178,2]
[373363326,1752969047276,-1822.26,0.00019178,2]
[373363328,1752969047286,-1343.31,0.00019178,2]
[373363330,1752969047295,-480.0,0.00019178,2]
[373363332,1752969047304,-480.0,0.00019178,2]
[373363334,1752969047313,-480.0,0.00019178,2]
[373363336,1752969047322,-1174.49,0.00019178,2]
[373363338,1752969047332,-480.0,0.00019178,2]
[373363340,1752969047341,-774.19,0.00019178,2]
[373363342,1752969047350,-4318.28,0.00019178,2]
[373363345,1752969047360,-480.0,0.00019178,2]
[373363346,1752969047369,-480.0,0.00019178,2]
[373363347,1752969047378,-500.0,0.00019178,2]
[373363349,1752969047387,-951.44,0.00019178,2]
[373363351,1752969047397,-1691.47,0.00019178,2]
[373363353,1752969047406,-2874.3,0.00019178,2]
[373363355,1752969047415,-630.63,0.00019178,2]
[373363357,1752969047424,-998.512684,0.00019178,2]
[373363359,1752969047433,-998.512684,0.00019178,2]
[373363361,1752969047442,-1560.48,0.00019178,2]
[373363363,1752969047452,-998.512684,0.00019178,2]
[373363365,1752969047463,-1560.48,0.00019178,2]
[373363367,1752969047472,-44.15015349,0.00019178,2]
[373363369,1752969047487,-599.09485811,0.00019178,2]
[373363524,1752969049407,-1154129.52666157,0.00018155,2]
[373363526,1752969049417,-37621.37028124,0.00018155,2]
[373363528,1752969049426,-862.0,0.00018939,2]
[373363530,1752969049437,-168.0,0.00019035,2]
[373363532,1752969049447,-355.2676724,0.00019178,2]
[373363537,1752969049651,-480.0,0.00019178,2]
[373363538,1752969049720,-998.512684,0.00019178,2]
[373363539,1752969049732,-1560.48,0.00019178,2]
[373363540,1752969049742,-179.931958,0.00019178,2]
[373363541,1752969049751,-998.512684,0.00019178,2]
[373363542,1752969049761,-1560.48,0.00019178,2]
[373363543,1752969049770,-179.931958,0.00019178,2]
[373363544,1752969049779,-998.512684,0.00019178,2]
[373363545,1752969049789,-179.931958,0.00019178,2]
[373363546,1752969049800,-700.07,0.00019178,2]